fUST/lending_fUST_20250102
["ID","MTS","AMOUNT","RATE_DAILY","PERIOD"]
[347426046,1735788639144,-570.279293,0.00019,2]
[347426047,1735788639154,-570.279293,0.00019,2]
[347426048,1735788639164,-570.279293,0.00019,2]
[347426049,1735788639173,-570.279293,0.00019,2]
[347426050,1735788639184,-151.0,0.00019,2]
[347426051,1735788639196,-151.0,0.00019,2]
[347426052,1735788639205,-151.0,0.00019,2]
[347426053,1735788639215,-151.0,0.00019,2]
[347426054,1735788639224,-151.0,0.00019,2]
[347426055,1735788639235,-151.0,0.00019,2]
[347426056,1735788639245,-798.389106,0.00019,2]
[347426057,1735788639254,-798.389106,0.00019,2]
[347426058,1735788639268,-798.389106,0.00019,2]
[347426059,1735788639277,-798.389106,0.00019,2]
[347426060,1735788639286,-151.0,0.00019,2]
[347426061,1735788639296,-151.0,0.00019,2]
[347426062,1735788639305,-151.0,0.00019,2]
[347426063,1735788639314,-151.0,0.00019,2]
[347426064,1735788639324,-151.0,0.00019,2]
[347426065,1735788639333,-151.0,0.00019,2]
[347426066,1735788639342,-151.0,0.00019,2]
[347426067,1735788639352,-946.755064,0.00019,2]
[347426068,1735788639362,-946.755064,0.00019,2]
[347426069,1735788639372,-151.0,0.00019,2]
[347426070,1735788639382,-151.0,0.00019,2]
[347426071,1735788639391,-151.464707,0.00019,2]
[347426072,1735788639401,-946.755064,0.00019,2]
[347426073,1735788639410,-946.755064,0.00019,2]
[347426074,1735788639420,-970.0,0.00019,2]
[347426075,1735788639429,-970.0,0.00019,2]
[347426076,1735788639438,-970.0,0.00019,2]
[347426077,1735788639448,-970.0,0.00019,2]
[347426078,1735788639457,-970.0,0.00019,2]
[347426079,1735788639466,-970.0,0.00019,2]
[347426080,1735788639475,-970.0,0.00019,2]
[347426081,1735788639485,-255.82187,0.00019,2]
[347426082,1735788639494,-151.0,0.00019,2]
[347426083,1735788639503,-151.0,0.00019,2]
[347426084,1735788639514,-151.0,0.00019,2]
[347426085,1735788639523,-151.0,0.00019,2]
[347426086,1735788639532,-151.0,0.00019,2]
[347426087,1735788639542,-151.0,0.00019,2]
[347426088,1735788639551,-151.0,0.00019,2]
[347426089,1735788639560,-151.0,0.00019,2]
[347426090,1735788639570,-167.974229,0.00019,2]
[347426091,1735788639579,-175.218115,0.00019004,2]
[347426092,1735788639589,-175.218115,0.00019004,2]
[347426093,1735788639598,-152.892615,0.00019009,2]
[347426094,1735788639608,-152.892615,0.00019009,2]
[347426095,1735788639618,-570.279293,0.00019014,2]
[347426096,1735788639627,-570.279293,0.00019014,2]
[347426097,1735788639636,-159.631956,0.00019014,2]
[347426098,1735788639646,-396.49792,0.00019018,2]
[347426099,1735788639655,-396.49792,0.00019018,2]
[347426100,1735788639666,-798.389106,0.00019018,2]
[347426101,1735788639675,-798.389106,0.00019018,2]
[347426102,1735788639685,-153.58878,0.00019018,2]
[347426103,1735788639694,-151.0,0.00019018,2]
[347426104,1735788639704,-151.0,0.00019018,2]
[347426105,1735788639715,-946.755064,0.00019018,2]
[347426106,1735788639725,-151.0,0.00019018,2]
[347426107,1735788639734,-946.755064,0.00019018,2]
[347426108,1735788639743,-151.0,0.0001903,2]
[347426109,1735788639753,-153.733097,0.0001903,2]
[347426111,1735788639763,-151.0,0.0001903,2]
[347426112,1735788639772,-152.556958,0.0001903,2]
[347426114,1735788639781,-152.892615,0.00019037,2]
[347426116,1735788639791,-152.892615,0.00019037,2]
[347426118,1735788639801,-151.0,0.00019037,2]
[347426119,1735788639810,-175.218115,0.00019037,2]
[347426120,1735788639819,-175.218119,0.00019037,2]
[347426121,1735788639828,-178.796,0.00019046,2]
[347426122,1735788639837,-151.0,0.00019046,2]
[347426123,1735788639846,-151.0,0.00019046,2]
[347426124,1735788639856,-903.38104537,0.00019078,2]
[347426125,1735788639866,-570.279293,0.0001915,2]
[347426126,1735788639876,-570.279293,0.0001915,2]
[347426127,1735788639885,-500.97874596,0.00019173,2]
[347426128,1735788639895,-160.05045474,0.00019173,2]
[347426129,1735788639903,-269.11246317,0.00019173,2]
[347426130,1735788639912,-151.0,0.00019177,2]
[347426131,1735788639922,-151.0,0.00019177,2]
[347426132,1735788639931,-396.49792,0.00019177,2]
[347426133,1735788639941,-396.49792,0.00019177,2]
[347426135,1735788639950,-151.0,0.00019177,2]
[347426137,1735788639959,-798.389106,0.00019177,2]
[347426138,1735788639969,-798.389106,0.00019177,2]
[347426139,1735788639979,-151.0,0.00019177,2]
[347426140,1735788639989,-151.0,0.00019177,2]
[347426141,1735788639998,-946.755064,0.00019177,2]
[347426142,1735788640008,-151.0,0.00019177,2]
[347426143,1735788640018,-946.755064,0.00019177,2]
[347426144,1735788640028,-151.0,0.00019177,2]
[347426145,1735788640038,-151.0,0.00019177,2]
[347426146,1735788640047,-500.0,0.00019177,2]
[347426147,1735788640056,-500.0,0.00019177,2]
[347426148,1735788640066,-505.10224429,0.00019177,2]
[347426149,1735788640076,-641.29483786,0.00019177,2]
[347426150,1735788640085,-392.26735781,0.00019177,2]
[347426151,1735788640095,-598.63190335,0.00019177,2]
[347426152,1735788640105,-500.0,0.00019177,2]
[347426153,1735788640114,-502.95827998,0.00019177,2]
[347426154,1735788640123,-492.87884206,0.00019177,2]
[347426155,1735788640132,-500.0,0.00019177,2]
[347426156,1735788640142,-500.0,0.00019177,2]
[347426157,1735788640151,-332.58072692,0.00019177,2]
[347426158,1735788640161,-500.0,0.00019177,2]
[347426159,1735788640171,-6380.1839604,0.00019178,2]
[347426160,1735788640181,-46290.09037597,0.00019178,2]
[347426161,1735788640193,-151.0,0.00019178,2]
[347426162,1735788640202,-151.0,0.00019178,2]
[347426163,1735788640212,-153.1008,0.00019178,2]
[347426164,1735788640221,-152.892615,0.00019178,2]
[347426165,1735788640233,-152.892619,0.00019178,2]
[347426166,1735788640242,-151.0,0.00019178,2]
[347426167,1735788640251,-151.0,0.00019178,2]
[347426168,1735788640260,-151.0,0.00019178,2]
[347426169,1735788640270,-268.045002,0.00019178,2]
[347426170,1735788640279,-151.0,0.00019178,2]
[347426171,1735788640288,-151.0,0.00019178,2]
[347426172,1735788640298,-151.0,0.00019178,2]
[347426173,1735788640307,-230.236348,0.00019178,2]
[347426174,1735788640316,-505.81084032,0.00019178,2]
[347426175,1735788640326,-500.0,0.00019178,2]
[347426176,1735788640335,-504.48498153,0.00019178,2]
[347426177,1735788640345,-500.0,0.00019178,2]
[347426178,1735788640355,-500.0,0.00019178,2]
[347426179,1735788640365,-500.0,0.00019178,2]
[347426180,1735788640375,-500.0,0.00019178,2]
[347426182,1735788640384,-500.0,0.00019178,2]
[347426184,1735788640393,-517.14484574,0.00019178,2]
[347426186,1735788640403,-505.53778926,0.00019178,2]
[347426188,1735788640412,-504.90279141,0.00019178,2]
[347426190,1735788640422,-475.5368826,0.00019178,2]
[347426191,1735788640431,-503.27009042,0.00019178,2]
[347426193,1735788640441,-505.54416781,0.00019178,2]
[347426195,1735788640450,-507.27536895,0.00019178,2]
[347426197,1735788640460,-507.18901581,0.00019178,2]
[347426199,1735788640469,-151.0,0.00019178,2]
[347426201,1735788640478,-151.0,0.00019178,2]
[347426203,1735788640488,-249.614133,0.00019178,2]
[347426205,1735788640497,-505.78012601,0.00019178,2]
[347426207,1735788640506,-498.23918081,0.00019178,2]
[347426208,1735788640516,-504.54854631,0.00019178,2]
[347426209,1735788640526,-505.86066478,0.00019178,2]
[347426210,1735788640535,-507.10225785,0.00019178,2]
[347426211,1735788640544,-504.48356787,0.00019178,2]
[347426212,1735788640553,-297.67729117,0.00019178,2]
[347426213,1735788640562,-505.84598326,0.00019178,2]
[347426214,1735788640572,-504.67816404,0.00019178,2]
[347426215,1735788640582,-503.92460448,0.00019178,2]
[347426216,1735788640591,-505.3399537,0.00019178,2]
[347426217,1735788640602,-504.5,0.00019178,2]
[347426218,1735788640612,-515.38687238,0.00019178,2]
[347426219,1735788640621,-513.21428414,0.00019178,2]
[347426220,1735788640630,-505.65080121,0.00019178,2]
[347426221,1735788640639,-507.66371879,0.00019178,2]
[347426222,1735788640649,-504.1371465,0.00019178,2]
[347426223,1735788640658,-504.98346544,0.00019178,2]
[347426224,1735788640667,-500.0,0.00019178,2]
[347426225,1735788640676,-500.0,0.00019178,2]
[347426226,1735788640685,-500.70214701,0.00019178,2]
[347426227,1735788640694,-505.96534029,0.00019178,2]
[347426228,1735788640703,-500.58285602,0.00019178,2]
[347426229,1735788640712,-501.36832826,0.00019178,2]
[347426230,1735788640721,-501.27406522,0.00019178,2]
[347426231,1735788640730,-501.97290996,0.00019178,2]
[347426232,1735788640739,-218.00069866,0.00019178,2]
[347426233,1735788640749,-500.0,0.00019178,2]
[347426234,1735788640758,-500.0,0.00019178,2]
[347426235,1735788640767,-396.49792,0.00019178,2]
[347426236,1735788640776,-396.49792,0.00019178,2]
[347426237,1735788640786,-396.49792,0.00019178,2]
[347426238,1735788640795,-396.49792,0.00019178,2]
[347426239,1735788640804,-491.73660611,0.00019178,2]
[347426240,1735788640814,-396.49792,0.00019178,2]
[347426241,1735788640824,-396.49792,0.00019178,2]
[347426242,1735788640833,-500.0,0.00019178,2]
[347426243,1735788640843,-500.94842738,0.00019178,2]
[347426244,1735788640852,-502.33412625,0.00019178,2]
[347426245,1735788640862,-396.49792,0.00019178,2]
[347426246,1735788640871,-396.49792,0.00019178,2]
[347426247,1735788640880,-500.31255193,0.00019178,2]
[347426248,1735788640890,-396.49792,0.00019178,2]
[347426249,1735788640899,-396.49792,0.00019178,2]
[347426250,1735788640909,-503.97149344,0.00019178,2]
[347426251,1735788640918,-396.49792,0.00019178,2]
[347426252,1735788640927,-396.497922,0.00019178,2]
[347426253,1735788640936,-500.0,0.00019178,2]
[347426254,1735788640946,-501.91546503,0.00019178,2]
[347426255,1735788640955,-500.0,0.00019178,2]
[347426256,1735788640964,-503.14103614,0.00019178,2]
[347426257,1735788640973,-504.4158463,0.00019178,2]
[347426258,1735788640983,-500.0,0.00019178,2]
[347426259,1735788640993,-500.78597891,0.00019178,2]
[347426260,1735788641002,-501.39431201,0.00019178,2]
[347426261,1735788641011,-507.46672014,0.00019178,2]
[347426262,1735788641020,-568.96521631,0.00019178,2]
[347426263,1735788641029,-502.72582467,0.00019178,2]
[347426264,1735788641038,-501.85763005,0.00019178,2]
[347426265,1735788641048,-510.94436845,0.00019178,2]
[347426266,1735788641057,-500.0,0.00019178,2]
[347426267,1735788641066,-510.42906969,0.00019178,2]
[347426268,1735788641075,-509.7544446,0.00019178,2]
[347426269,1735788641084,-484.70000938,0.00019178,2]
[347426270,1735788641094,-512.62613174,0.00019178,2]
[347426271,1735788641103,-500.0,0.00019178,2]
[347426272,1735788641112,-500.0,0.00019178,2]
[347426273,1735788641121,-570.279293,0.00019178,2]
[347426274,1735788641130,-570.279293,0.00019178,2]
[347426275,1735788641139,-570.279293,0.00019178,2]
[347426276,1735788641149,-570.279293,0.00019178,2]
[347426277,1735788641160,-570.279293,0.00019178,2]
[347426278,1735788641272,-570.279293,0.00019178,2]
[347426279,1735788641282,-570.279293,0.00019178,2]
[347426280,1735788641291,-570.279293,0.00019178,2]
[347426281,1735788641301,-570.279293,0.00019178,2]
[347426282,1735788641310,-570.279293,0.00019178,2]
[347426283,1735788641319,-570.279293,0.00019178,2]
[347426284,1735788641328,-570.279298,0.00019178,2]
[347426285,1735788641337,-500.0,0.00019178,2]
[347426286,1735788641347,-500.0,0.00019178,2]
[347426287,1735788641356,-512.61256582,0.00019178,2]
[347426288,1735788641366,-564.43,0.00019178,2]
[347426289,1735788641375,-504.94312246,0.00019178,2]
[347426290,1735788641384,-504.04540756,0.00019178,2]
[347426291,1735788641394,-170.582381,0.00019178,2]
[347426292,1735788641404,-507.19901111,0.00019178,2]
[347426293,1735788641413,-505.3225339,0.00019178,2]
[347426294,1735788641423,-563.98,0.00019178,2]
[347426295,1735788641432,-798.389106,0.00019178,2]
[347426296,1735788641441,-798.389106,0.00019178,2]
[347426297,1735788641450,-798.389106,0.00019178,2]
[347426298,1735788641460,-798.389106,0.00019178,2]
[347426299,1735788641469,-798.389106,0.00019178,2]
[347426300,1735788641478,-798.389106,0.00019178,2]
[347426301,1735788641488,-798.389106,0.00019178,2]
[347426302,1735788641498,-798.389106,0.00019178,2]
[347426303,1735788641509,-798.389106,0.00019178,2]
[347426304,1735788641518,-798.389106,0.00019178,2]
[347426305,1735788641527,-798.389106,0.00019178,2]
[347426306,1735788641537,-798.389111,0.00019178,2]
[347426307,1735788641546,-500.0,0.00019178,2]
[347426308,1735788641555,-500.0,0.00019178,2]
[347426309,1735788641564,-500.0,0.00019178,2]
[347426310,1735788641574,-151.0,0.00019178,2]
[347426311,1735788641583,-165.745671,0.00019178,2]
[347426312,1735788641593,-500.0,0.00019178,2]
[347426313,1735788641603,-500.0,0.00019178,2]
[347426314,1735788641613,-500.0,0.00019178,2]
[347426315,1735788641622,-732.05,0.00019178,2]
[347426316,1735788641631,-527.51,0.00019178,2]
[347426317,1735788641641,-500.0,0.00019178,2]
[347426318,1735788641650,-500.0,0.00019178,2]
[347426319,1735788641659,-500.0,0.00019178,2]
[347426320,1735788641669,-151.0,0.00019178,2]
[347426321,1735788641678,-151.0,0.00019178,2]
[347426322,1735788641688,-151.0,0.00019178,2]
[347426323,1735788641698,-151.0,0.00019178,2]
[347426324,1735788641707,-151.0,0.00019178,2]
[347426325,1735788641717,-151.0,0.00019178,2]
[347426326,1735788641726,-151.0,0.00019178,2]
[347426327,1735788641735,-946.755064,0.00019178,2]
[347426328,1735788641745,-946.755064,0.00019178,2]
[347426329,1735788641754,-946.755064,0.00019178,2]
[347426330,1735788641763,-946.755064,0.00019178,2]
[347426331,1735788641773,-260.529385,0.00019178,2]
[347426332,1735788641782,-946.755064,0.00019178,2]
[347426333,1735788641792,-946.755064,0.00019178,2]
[347426334,1735788641801,-946.755064,0.00019178,2]
[347426335,1735788641811,-946.755064,0.00019178,2]
[347426336,1735788641820,-946.755064,0.00019178,2]
[347426337,1735788641829,-946.755064,0.00019178,2]
[347426338,1735788641839,-946.755064,0.00019178,2]
[347426339,1735788641848,-946.75506,0.00019178,2]
[347426340,1735788641858,-512.7006794,0.00019178,2]
[347426341,1735788641868,-2440.59,0.00019178,2]
[347426342,1735788641877,-500.0,0.00019178,2]
[347426343,1735788641887,-151.0,0.00019178,2]
[347426344,1735788641896,-151.0,0.00019178,2]
[347426345,1735788641906,-151.0,0.00019178,2]
[347426346,1735788641916,-151.0,0.00019178,2]
[347426347,1735788641925,-151.0,0.00019178,2]
[347426348,1735788641934,-500.0,0.00019178,2]
[347426349,1735788641943,-247.209918,0.00019178,2]
[347426350,1735788641953,-500.0,0.00019178,2]
[347426351,1735788641963,-500.0,0.00019178,2]
[347426352,1735788641972,-500.0,0.00019178,2]
[347426353,1735788641982,-500.0,0.00019178,2]
[347426354,1735788641991,-500.0,0.00019178,2]
[347426355,1735788642001,-500.0,0.00019178,2]
[347426356,1735788642010,-209.99425698,0.00019178,2]
[347426357,1735788642020,-500.0,0.00019178,2]
[347426358,1735788642029,-500.0,0.00019178,2]
[347426359,1735788642039,-505.49997052,0.00019178,2]
[347426360,1735788642048,-500.0,0.00019178,2]
[347426361,1735788642057,-625.76,0.00019178,2]
[347426362,1735788642067,-506.50676536,0.00019178,2]
[347426363,1735788642076,-500.0,0.00019178,2]
[347426364,1735788642085,-500.0,0.00019178,2]
[347426365,1735788642094,-500.0,0.00019178,2]
[347426366,1735788642103,-504.3213234,0.00019178,2]
[347426367,1735788642113,-500.0,0.00019178,2]
[347426368,1735788642122,-173.0088981,0.00019178,2]
[347426369,1735788642131,-163.585279,0.00019178,2]
[347426370,1735788642141,-760.69,0.000192,2]
[347426371,1735788642150,-500.0,0.00019451,3]
[347426372,1735788642159,-590.11,0.00019452,3]
[347426373,1735788642169,-500.0,0.00019452,3]
[347426374,1735788642181,-479.81540349,0.00019452,3]
[347426375,1735788642195,-502.03400573,0.00019452,3]
[347426376,1735788642204,-500.0,0.00019452,3]
[347426377,1735788642215,-500.0,0.00019452,3]
[347426378,1735788642225,-510.16992178,0.00019452,3]
[347426379,1735788642235,-267.44689637,0.00019452,3]
[347426380,1735788642244,-329.16,0.00019452,3]
[347426381,1735788642254,-500.0,0.00019452,3]
[347426382,1735788642263,-500.0,0.00019452,3]
[347426383,1735788642274,-292.16,0.00019452,3]
[347426384,1735788642283,-500.0,0.00019452,3]
[347426385,1735788642292,-500.0,0.00019452,3]
[347426386,1735788642301,-365.90577823,0.00019452,3]
[347426387,1735788642311,-732.05,0.00019452,3]
[347426388,1735788642320,-527.51,0.00019452,3]
[347426389,1735788642331,-617.05295923,0.00019452,3]
[347426390,1735788642341,-186.70156483,0.00019452,2]
[347426391,1735788642350,-500.0,0.00019452,3]
[347426392,1735788642360,-2440.59,0.00019452,3]
[347426393,1735788642370,-500.0,0.00019452,3]
[347426394,1735788642379,-500.0,0.00019452,3]
[347426395,1735788642388,-204.53,0.00019452,3]
[347426396,1735788642398,-500.0,0.00019452,3]
[347426397,1735788642407,-516.58,0.00019452,3]
[347426398,1735788642417,-500.0,0.00019452,3]
[347426399,1735788642426,-500.0,0.00019452,3]
[347426400,1735788642435,-500.0,0.00019452,3]
[347426401,1735788642445,-500.0,0.00019452,3]
[347426402,1735788642454,-500.0,0.00019452,3]
[347426403,1735788642463,-500.0,0.00019452,3]
[347426404,1735788642473,-500.0,0.00019452,3]
[347426405,1735788642482,-500.0,0.00019452,3]
[347426406,1735788642492,-166.06892395,0.00019505,2]
[347426407,1735788642501,-427.61086415,0.00019725,3]
[347426408,1735788642510,-500.0,0.00019726,3]
[347426409,1735788642520,-467.92,0.00019726,3]
[347426410,1735788642529,-500.0,0.00019726,3]
[347426411,1735788642539,-201.43,0.00019726,3]
[347426412,1735788642548,-500.0,0.00019726,3]
[347426413,1735788642558,-500.0,0.00019726,3]
[347426414,1735788642567,-732.05,0.00019726,3]
[347426415,1735788642576,-527.51,0.00019726,3]
[347426416,1735788642585,-500.0,0.00019726,3]
[347426417,1735788642594,-2440.59,0.00019726,3]
[347426418,1735788642603,-500.0,0.00019726,3]
[347426419,1735788642612,-500.0,0.00019726,3]
[347426420,1735788642621,-500.0,0.00019726,3]
[347426421,1735788642631,-500.0,0.00019726,3]
[347426422,1735788642640,-500.0,0.00019726,3]
[347426423,1735788642649,-165.13368157,0.00019726,3]
[347426424,1735788642659,-500.0,0.00019726,3]
[347426425,1735788642668,-500.0,0.00019726,3]
[347426426,1735788642677,-500.0,0.00019726,3]
[347426427,1735788642686,-500.0,0.00019726,3]
[347426428,1735788642695,-6527.0,0.0002,2]
[347426429,1735788642705,-500.0,0.0002,3]
[347426430,1735788642715,-500.0,0.0002,3]
[347426431,1735788642724,-500.0,0.0002,3]
[347426432,1735788642733,-500.0,0.0002,3]
[347426433,1735788642743,-732.05,0.0002,3]
[347426434,1735788642753,-527.51,0.0002,3]
[347426435,1735788642762,-500.0,0.0002,3]
[347426436,1735788642771,-2440.59,0.0002,3]
[347426437,1735788642780,-500.0,0.0002,3]
[347426438,1735788642790,-367.00449175,0.0002,3]
[347426439,1735788642799,-500.0,0.0002,3]
[347426440,1735788642808,-502.18290582,0.0002,3]
[347426441,1735788642817,-500.0,0.0002,3]
[347426442,1735788642826,-500.0,0.0002,3]
[347426444,1735788642835,-500.0,0.0002,3]
[347426446,1735788642844,-245.08074399,0.0002,3]
[347426447,1735788642854,-500.0,0.0002,3]
[347426449,1735788642864,-903.38104533,0.00020037,2]
[347426451,1735788642873,-150.83,0.00020041,2]
[347426453,1735788642883,-2144.329,0.00020041,2]
[347426455,1735788642892,-535.136,0.00020041,2]
[347426457,1735788642902,-2389.741,0.00020041,2]
[347426459,1735788642911,-394.0,0.00020041,2]
[347426461,1735788642921,-166.06892395,0.00020112,2]
[347426462,1735788642930,-500.0,0.00020273,3]
[347426463,1735788642940,-500.0,0.00020273,3]
[347426465,1735788642950,-500.0,0.00020273,3]
[347426467,1735788642959,-500.0,0.00020273,3]
[347426469,1735788642968,-732.05,0.00020273,3]
[347426471,1735788642978,-527.51,0.00020273,3]
[347426473,1735788642987,-499.0,0.00020273,2]
[347426474,1735788642997,-500.0,0.00020273,3]
[347426475,1735788643006,-2440.59,0.00020273,3]
[347426476,1735788643015,-500.0,0.00020273,3]
[347426477,1735788643025,-500.0,0.00020273,3]
[347426478,1735788643034,-500.0,0.00020273,3]
[347426479,1735788643043,-500.0,0.00020273,3]
[347426480,1735788643053,-500.0,0.00020273,3]
[347426481,1735788643062,-500.0,0.00020273,3]
[347426482,1735788643071,-168.27353281,0.00020411,2]
[347426483,1735788643080,-197.262882,0.00020447,2]
[347426484,1735788643089,-166.424857,0.00020521,2]
[347426486,1735788643099,-500.0,0.00020547,3]
[347426487,1735788643110,-500.0,0.00020547,3]
[347426489,1735788643119,-500.0,0.00020547,3]
[347426491,1735788643129,-500.0,0.00020547,3]
[347426493,1735788643138,-732.05,0.00020547,3]
[347426495,1735788643148,-527.51,0.00020547,3]
[347426497,1735788643157,-500.0,0.00020547,3]
[347426499,1735788643167,-2440.59,0.00020547,3]
[347426501,1735788643176,-500.0,0.00020547,3]
[347426503,1735788643188,-500.0,0.00020547,3]
[347426504,1735788643198,-500.0,0.00020547,3]
[347426505,1735788643207,-500.0,0.00020547,3]
[347426506,1735788643217,-349.03428439,0.00020547,3]
[347426507,1735788643226,-500.0,0.00020547,3]
[347426508,1735788643235,-168.27353281,0.00020685,2]
[347426510,1735788643245,-166.06892395,0.00020718,2]
[347426512,1735788643254,-187.0,0.000208,2]
[347426513,1735788643265,-500.0,0.00020821,3]
[347426514,1735788643274,-500.0,0.00020821,3]
[347426515,1735788643284,-500.0,0.00020821,3]
[347426516,1735788643293,-500.0,0.00020821,3]
[347426517,1735788643303,-732.05,0.00020821,3]
[347426518,1735788643312,-527.51,0.00020821,3]
[347426519,1735788643321,-500.0,0.00020821,3]
[347426520,1735788643331,-2440.59,0.00020821,3]
[347426521,1735788643340,-500.0,0.00020821,3]
[347426522,1735788643349,-500.0,0.00020821,3]
[347426523,1735788643360,-500.0,0.00020821,3]
[347426524,1735788643370,-500.0,0.00020821,3]
[347426525,1735788643379,-500.0,0.00020821,3]
[347426526,1735788643388,-166.424857,0.00020904,2]
[347426527,1735788643398,-903.38104533,0.00020996,2]
[347426528,1735788643407,-220.28082688,0.00020999,2]
[347426529,1735788643416,-500.0,0.00020999,2]
[347426530,1735788643426,-500.0,0.00020999,2]
[347426531,1735788643435,-603.17710011,0.00020999,2]
[347426532,1735788643443,-2000.0,0.00021,2]
[347426533,1735788643453,-28919.72193856,0.00021,2]
[347426535,1735788643462,-3000.0,0.00021,2]
[347426536,1735788643471,-3000.0,0.0002101,2]
[347426537,1735788643480,-3000.0,0.0002102,2]
[347426538,1735788643492,-3000.0,0.0002103,2]
[347426539,1735788643501,-3000.0,0.0002104,2]
[347426540,1735788643510,-3000.0,0.0002105,2]
[347426541,1735788643519,-3000.0,0.0002106,2]
[347426542,1735788643529,-160.0,0.00021065,3]
[347426543,1735788643538,-3000.0,0.0002107,2]
[347426544,1735788643547,-3000.0,0.0002108,2]
[347426545,1735788643565,-3000.0,0.0002109,2]
[347426546,1735788643577,-155.62,0.0002109,2]
[347426547,1735788643587,-3515.12889314,0.00021095,14]
[347426548,1735788643596,-500.0,0.00021095,3]
[347426549,1735788643607,-500.0,0.00021095,3]
[347426550,1735788643618,-500.0,0.00021095,3]
[347426551,1735788643627,-500.0,0.00021095,3]
[347426552,1735788643636,-732.05,0.00021095,3]
[347426553,1735788643646,-527.51,0.00021095,3]
[347426554,1735788643655,-500.0,0.00021095,3]
[347426555,1735788643664,-2440.59,0.00021095,3]
[347426556,1735788643674,-500.0,0.00021095,3]
[347426557,1735788643683,-500.0,0.00021095,3]
[347426558,1735788643693,-500.0,0.00021095,3]
[347426559,1735788643702,-500.0,0.00021095,3]
[347426560,1735788643711,-374.76479957,0.00021095,3]
[347426561,1735788643720,-3000.0,0.000211,2]
[347426562,1735788643730,-3000.0,0.0002111,2]
[347426563,1735788643739,-3000.0,0.0002112,2]
[347426564,1735788643749,-3134.035574,0.0002113,2]
[347426565,1735788643758,-10317.53524647,0.00021155,2]
[347426566,1735788643767,-166.424857,0.00021288,2]
[347426567,1735788643777,-166.06892395,0.00021325,2]
[347426568,1735788643786,-160.0,0.00021349,4]
[347426569,1735788643795,-500.0,0.00021369,3]
[347426570,1735788643805,-500.0,0.00021369,3]
[347426571,1735788643814,-500.0,0.00021369,3]
[347426572,1735788643824,-500.0,0.00021369,3]
[347426573,1735788643833,-732.05,0.00021369,3]
[347426574,1735788643968,-527.51,0.00021369,3]
[347426575,1735788643991,-500.0,0.00021369,3]
[347426576,1735788644000,-2440.59,0.00021369,3]
[347426577,1735788644010,-500.0,0.00021369,3]
[347426578,1735788644019,-500.0,0.00021369,3]
[347426579,1735788644028,-500.0,0.00021369,3]
[347426580,1735788644037,-472.47317389,0.00021369,3]
[347426581,1735788644109,-27.52682611,0.00021369,3]
[347426582,1735788644118,-501.37694179,0.00021536,2]
[347426583,1735788644128,-155.9125425,0.00021589,2]
[347426584,1735788644139,-474.3071903,0.00021589,2]
[347426585,1735788644148,-6527.0,0.000216,4]
[347426586,1735788644157,-160.0,0.00021632,5]
[347426587,1735788644167,-500.0,0.00021643,3]
[347426588,1735788644177,-500.0,0.00021643,3]
[347426589,1735788644186,-517.5646173,0.00021643,3]
[347426590,1735788644198,-500.0,0.00021643,3]